bitfinex/quotes_SOLUSD_20251030
["timestamp","ask_amount","ask_price","bid_price","bid_amount"]
[1761794469553,27.25798516,197.82,197.81,1.9612922]
[1761794469836,24.17792661,197.82,197.81,1.9612922]
[1761794470036,3.58592661,197.82,197.81,1.9612922]
[1761794470212,8.6410272,197.82,197.81,1.9612922]
[1761794470612,24.17792661,197.82,197.81,1.9612922]
[1761794471010,29.2330272,197.82,197.81,1.9612922]
[1761794471224,24.17792661,197.82,197.81,1.9612922]
[1761794471935,8.6410272,197.82,197.81,1.9612922]
[1761794473451,3.58592661,197.82,197.81,1.9612922]
[1761794473640,24.17792661,197.82,197.81,1.9612922]
[1761794474220,3.58592661,197.82,197.81,1.9612922]
[1761794475329,2.47289154,197.82,197.81,1.9612922]
[1761794475742,23.06489154,197.82,197.81,1.9612922]
[1761794476241,2.47289154,197.82,197.81,1.9612922]
[1761794476825,23.06489154,197.82,197.81,1.9612922]
[1761794477036,2.47289154,197.82,197.81,1.9612922]
[1761794477343,1.96702348,197.82,197.81,1.9612922]
[1761794478750,22.55902348,197.82,197.81,1.9612922]
[1761794482530,20.592,197.85,197.81,1.9612922]
[1761794482728,2.47289154,197.84,197.81,2.6612922]
[1761794482946,1.96702348,197.83,197.81,1.9612922]
[1761794483159,1.96702348,197.82,197.81,1.9612922]
[1761794488941,2.47289154,197.82,197.81,1.9612922]
[1761794491037,1.96702348,197.83,197.81,2.6612922]
[1761794491241,1.96702348,197.83,197.82,0.7]
[1761794491840,1.96702348,197.83,197.81,1.9612922]
[1761794492037,1.96702348,197.83,197.81,2.6612922]
[1761794492437,1.96702348,197.83,197.81,1.9612922]
[1761794492735,1.96702348,197.83,197.82,0.7]
[1761794495658,0.50586806,197.85,197.82,0.7]
[1761794495964,1.96702348,197.87,197.82,0.7]
[1761794498054,0.70586806,197.89,197.82,7.72208725]
[1761794498269,0.2,197.89,197.85,1.96702348]
[1761794498443,0.70586806,197.89,197.84,1.96702348]
[1761794498848,0.2,197.89,197.85,0.7]
[1761794499048,0.2,197.89,197.85,2.66702348]
[1761794499465,0.2,197.89,197.86,0.7]
[1761794500566,2.16702348,197.89,197.86,0.7]
[1761794500962,2.67289154,197.89,197.86,0.7]
[1761794501758,0.70586806,197.89,197.86,0.7]
[1761794503153,2.67289154,197.89,197.86,0.7]
[1761794509880,2.16702348,197.89,197.86,0.7]
[1761794510086,0.2,197.89,197.86,0.7]
[1761794511463,0.2,197.89,197.84,7.02158609]
[1761794511464,1.96702348,197.87,197.84,0.7]
[1761794511669,1.96702348,197.86,197.84,0.7]
[1761794511877,2.47289154,197.88,197.84,0.7]
[1761794515197,0.50586806,197.88,197.84,0.7]
[1761794515487,0.50586806,197.88,197.84,5.75457261]
[1761794515684,2.67289154,197.89,197.84,5.75457261]
[1761794515881,2.67289154,197.89,197.85,0.7]
[1761794516083,0.2,197.89,197.88,1.96702348]
[1761794516268,0.1,197.94,197.89,9.78882769]
[1761794516589,0.1,197.94,197.91,1.96702348]
[1761794516965,0.1,197.94,197.93,1.96702348]
[1761794517366,0.1,197.94,197.93,2.66702348]
[1761794517782,0.1,197.94,197.93,7.71931469]
[1761794522691,0.1,197.94,197.93,17.50814238]
[1761794522992,0.1,197.94,197.93,17.65030395]
[1761794525270,0.1,197.94,197.93,17.50814238]
[1761794526075,0.1,197.94,197.93,21.86628116]
[1761794526276,0.1,197.94,197.93,17.65030395]
[1761794526694,0.1,197.94,197.93,15.5411189]
[1761794526903,0.1,197.94,197.93,17.50814238]
[1761794527570,0.1,197.94,197.93,18.15553307]
[1761794529972,0.1,197.94,197.93,17.65030395]
[1761794533887,0.1,197.94,197.92,9.78882769]
[1761794534086,0.1,197.94,197.93,1.96702348]
[1761794535416,0.1,197.94,197.89,0.72]
[1761794535700,0.3,197.94,197.89,1.96702348]
[1761794536109,0.2,197.93,197.89,1.96702348]
[1761794536288,0.2,197.93,197.88,1.96702348]
[1761794536489,0.60586806,197.94,197.89,1.96702348]
[1761794537181,0.70586806,197.93,197.89,1.96702348]
[1761794537387,0.70586806,197.93,197.89,3.06872023]
[1761794538578,0.70586806,197.93,197.88,8.12226205]
[1761794539504,0.2,197.92,197.87,3.06872023]
[1761794539719,0.50586806,197.91,197.85,3.06872023]
[1761794539908,23.86072023,197.9,197.83,13.57754792]
[1761794540109,3.57458829,197.89,197.82,3.06872023]
[1761794540297,3.06872023,197.88,197.81,5.75001243]
[1761794540491,0.50586806,197.87,197.81,5.75001243]
[1761794541105,0.70586806,197.87,197.81,2.6812922]
[1761794541299,3.77458829,197.87,197.81,2.6812922]
[1761794541610,3.06872023,197.86,197.81,2.6812922]
[1761794541989,3.26872023,197.86,197.81,2.6812922]
[1761794542190,0.50586806,197.85,197.81,1.9612922]
[1761794542391,3.06872023,197.84,197.81,1.9612922]
[1761794542609,3.06872023,197.82,197.81,1.9612922]
[1761794543119,3.26872023,197.82,197.81,1.9612922]
[1761794543321,23.86072023,197.82,197.81,1.9612922]
[1761794544311,0.2,197.82,197.81,1.9612922]
[1761794544514,3.26872023,197.82,197.81,1.9612922]
[1761794545593,23.86072023,197.82,197.81,1.9612922]
[1761794546297,24.0028818,197.82,197.81,1.9612922]
[1761794546494,20.592,197.78,197.69,0.2]
[1761794546696,3.06872023,197.71,197.69,0.2]
[1761794546915,3.57458829,197.7,197.69,0.2]
[1761794548187,3.77458829,197.7,197.69,0.2]
[1761794548592,3.57458829,197.7,197.69,0.2]
[1761794551205,3.77458829,197.7,197.69,0.2]
[1761794552905,3.57458829,197.7,197.69,0.2]
[1761794555012,3.06872023,197.71,197.69,0.88]
[1761794556112,3.57458829,197.72,197.69,0.88]
[1761794556327,3.57458829,197.75,197.7,0.68]
[1761794556613,3.06872023,197.75,197.7,0.68]
[1761794556923,3.57458829,197.74,197.7,0.68]
[1761794557800,3.06872023,197.74,197.7,0.68]
[1761794558414,3.57458829,197.73,197.69,0.2]
[1761794558723,3.06872023,197.7,197.69,0.2]
[1761794559124,3.77458829,197.7,197.69,0.2]
[1761794560411,0.50586806,197.7,197.69,0.2]
[1761794560606,3.06872023,197.7,197.69,0.2]
[1761794564233,3.06872023,197.73,197.69,0.88]
[1761794564416,3.06872023,197.74,197.7,0.68]
[1761794564607,0.50586806,197.73,197.7,0.68]
[1761794565126,3.06872023,197.74,197.7,0.68]
[1761794565516,3.06872023,197.75,197.7,5.73811301]
[1761794565714,0.50586806,197.74,197.71,0.68]
[1761794568710,0.50586806,197.75,197.71,0.68]
[1761794570026,3.06872023,197.76,197.71,0.68]
[1761794570339,0.50586806,197.75,197.71,0.68]
[1761794573254,0.50586806,197.77,197.71,0.68]
[1761794573545,3.57458829,197.76,197.71,0.68]
[1761794574050,3.57458829,197.76,197.71,5.73790594]
[1761794574710,3.57458829,197.76,197.72,0.72]
[1761794575045,0.50586806,197.76,197.72,0.72]
[1761794575338,0.50586806,197.77,197.72,0.72]
[1761794575851,0.50586806,197.77,197.72,5.77764642]
[1761794576215,0.50586806,197.77,197.73,0.72]
[1761794577217,0.50586806,197.78,197.74,3.06872023]
[1761794577442,3.77458829,197.82,197.75,3.06872023]
[1761794577619,24.36658829,197.82,197.75,3.06872023]
[1761794577820,24.36658829,197.82,197.76,0.72]
[1761794578132,20.592,197.81,197.76,0.72]
[1761794578319,0.50586806,197.8,197.76,0.72]
[1761794579121,0.50586806,197.83,197.77,3.06872023]
[1761794579348,0.70586806,197.83,197.77,3.06872023]
[1761794580260,0.70586806,197.83,197.77,3.78872023]
[1761794581026,3.06872023,197.8,197.73,0.72]
[1761794581229,0.50586806,197.79,197.73,0.72]
[1761794582044,0.70586806,197.79,197.73,0.72]
[1761794582548,3.26872023,197.78,197.71,0.72]
[1761794582744,0.50586806,197.77,197.71,0.72]
[1761794583355,21.09786806,197.77,197.71,0.72]
[1761794584057,0.50586806,197.77,197.71,0.72]
[1761794584252,3.06872023,197.76,197.71,0.72]
[1761794584457,0.50586806,197.75,197.71,0.72]
[1761794586360,3.57458829,197.75,197.71,0.72]
[1761794587564,0.50586806,197.75,197.71,0.72]
[1761794587775,20.592,197.78,197.71,0.72]
[1761794587776,0.50586806,197.76,197.71,0.72]
[1761794588068,0.50586806,197.76,197.72,3.06872023]
[1761794588234,0.50586806,197.76,197.73,0.72]
[1761794588437,0.50586806,197.78,197.73,0.72]
[1761794588636,3.06872023,197.77,197.73,0.72]
[1761794588976,0.50586806,197.76,197.73,0.72]
[1761794589854,21.09786806,197.76,197.73,0.72]
[1761794590046,24.16658829,197.76,197.7,4.21597721]
[1761794590248,24.16658829,197.76,197.7,4.93597721]
[1761794590653,3.57458829,197.76,197.71,0.72]
[1761794591764,0.50586806,197.76,197.71,0.72]
[1761794592271,3.26872023,197.75,197.7,4.21597721]
[1761794592471,3.26872023,197.75,197.69,0.2]
[1761794592472,3.06872023,197.71,197.69,0.2]
[1761794592674,0.50586806,197.7,197.69,0.2]
[1761794593260,3.91674986,197.7,197.69,0.2]
[1761794593468,6.98547009,197.7,197.69,0.2]
[1761794593647,21.83246672,197.7,197.69,0.2]
[1761794594551,71.83246672,197.7,197.69,0.2]
[1761794594756,0.14216157,197.66,197.64,9.76366796]
[1761794594947,3.57458829,197.65,197.64,9.76366796]
[1761794595141,3.91674986,197.65,197.64,9.76366796]
[1761794595363,29.56819838,197.65,197.64,9.76366796]
[1761794596072,39.35702607,197.65,197.64,9.76366796]
[1761794597357,64.84904426,197.62,197.61,0.2]
[1761794597557,10.43685732,197.62,197.61,0.2]
[1761794597855,18.76579412,197.62,197.61,0.2]
[1761794598985,0.64802963,197.62,197.61,0.2]
[1761794599144,24.30874986,197.62,197.61,0.2]
[1761794599349,23.21123994,197.62,197.61,0.2]
[1761794600087,23.41123994,197.62,197.61,0.2]
[1761794601073,23.21123994,197.62,197.61,0.2]
[1761794601480,23.41123994,197.62,197.61,0.2]
[1761794602467,38.2602842,197.62,197.61,0.2]
[1761794602774,20.592,197.58,197.51,0.2]
[1761794602954,1.97121031,197.52,197.51,0.2]
[1761794604564,22.56321031,197.52,197.51,0.2]
[1761794605382,12.31121031,197.52,197.51,0.2]
[1761794606455,12.65337188,197.52,197.51,0.2]
[1761794606663,18.22201839,197.52,197.51,0.2]
[1761794607364,28.01084608,197.52,197.51,0.2]
[1761794607568,29.98205639,197.52,197.51,0.2]
[1761794607878,28.01084608,197.52,197.51,0.2]
[1761794608179,120.97685732,197.52,197.51,0.2]
[1761794608387,129.47618833,197.52,197.51,0.2]
[1761794608759,22.44219957,197.52,197.51,0.2]
[1761794608967,22.94806763,197.52,197.51,0.2]
[1761794609284,2.61923994,197.52,197.51,0.2]
[1761794609488,0.50586806,197.52,197.51,0.2]
[1761794609669,33.40907837,197.52,197.51,0.2]
[1761794610063,33.90907837,197.52,197.51,0.2]
[1761794610268,34.05123994,197.52,197.51,0.2]
[1761794611865,13.45923994,197.52,197.51,0.2]
[1761794612075,34.05123994,197.52,197.51,0.2]
[1761794612572,13.45923994,197.52,197.51,0.2]
[1761794612979,34.05123994,197.52,197.51,0.2]
[1761794613291,13.45923994,197.52,197.51,0.2]
[1761794613587,34.05123994,197.52,197.51,0.2]
[1761794613889,13.45923994,197.52,197.51,0.2]
[1761794614276,1.00586806,197.52,197.51,0.2]
[1761794614598,10.86,197.52,197.51,0.91]
[1761794615092,10.36,197.52,197.51,0.91]
[1761794616895,30.952,197.52,197.51,0.91]
[1761794617391,2.47707837,197.58,197.51,7.94418162]
[1761794617569,0.50586806,197.58,197.53,1.97121031]
[1761794617768,0.50586806,197.58,197.54,1.97121031]
[1761794617769,10.36,197.57,197.54,1.97121031]
[1761794617971,10.36,197.57,197.53,1.97121031]
[1761794618174,10.36,197.57,197.52,2.68121031]
[1761794618476,10.36,197.57,197.52,7.74390087]
[1761794618694,10.36,197.57,197.53,0.71]
[1761794626599,1.97121031,197.6,197.54,1.97121031]
[1761794626787,1.97121031,197.6,197.53,5.77243559]
[1761794626788,10.86586806,197.59,197.53,2.68121031]
[1761794626988,10.36,197.58,197.54,0.71]
[1761794630390,10.86586806,197.58,197.54,0.71]
[1761794633009,0.50586806,197.61,197.55,1.97121031]
[1761794633210,10.34,197.6,197.57,1.97121031]
[1761794633711,10.34,197.6,197.58,0.71]
[1761794634304,10.34,197.6,197.58,7.74243865]
[1761794634691,10.34,197.6,197.59,2.68121031]
[1761794634997,10.34,197.6,197.59,0.71]
[1761794636509,2.47707837,197.63,197.59,0.71]
[1761794636510,0.50586806,197.65,197.59,0.71]
[1761794636716,10.34,197.64,197.6,1.97121031]
[1761794636911,10.34,197.64,197.61,1.97121031]
[1761794637417,10.34,197.64,197.62,0.71]
[1761794638108,12.31121031,197.64,197.62,0.71]
[1761794638298,10.84586806,197.64,197.62,0.71]
[1761794639903,1.97121031,197.63,197.59,0.71]
[1761794640096,2.47707837,197.62,197.59,0.71]
[1761794640318,10.34,197.61,197.59,0.71]
[1761794643313,30.42,197.66,197.6,1.97121031]
[1761794643516,10.34,197.65,197.6,1.97121031]
[1761794643723,10.34,197.65,197.61,0.71]
[1761794644017,10.34,197.65,197.62,1.97121031]
[1761794644318,10.34,197.65,197.63,0.71]
[1761794644495,0.50586806,197.74,197.64,1.97121031]
[1761794644698,2.47707837,197.74,197.68,7.02987211]
[1761794644896,12.31121031,197.73,197.68,5.0586618]
[1761794645116,10.34,197.73,197.69,0.71]
[1761794646890,2.47707837,197.74,197.69,0.71]
[1761794647095,12.31121031,197.72,197.69,0.71]
[1761794647322,12.31121031,197.72,197.66,1.97121031]
[1761794647323,1.97121031,197.7,197.66,0.71]
[1761794647801,2.47707837,197.71,197.66,0.71]
[1761794648006,30.932,197.72,197.67,1.97121031]
[1761794648518,30.932,197.72,197.68,0.71]
[1761794648694,20.592,197.72,197.68,0.71]
[1761794649504,1.97121031,197.74,197.68,7.73986802]
[1761794649808,22.56321031,197.75,197.69,1.97121031]
[1761794650122,0.50586806,197.74,197.69,2.68121031]
[1761794650300,0.50586806,197.74,197.7,0.71]
[1761794650909,2.47707837,197.74,197.7,0.71]
[1761794652197,1.97121031,197.73,197.7,0.71]
[1761794653300,1.97121031,197.72,197.7,0.71]
[1761794655511,2.47707837,197.71,197.66,0.69]
[1761794655703,1.97121031,197.7,197.66,0.69]
[1761794655909,0.50586806,197.74,197.67,1.97121031]
[1761794656110,1.97121031,197.73,197.67,1.97121031]
[1761794656310,2.47707837,197.72,197.68,0.69]
[1761794659431,3.58175898,197.72,197.68,0.69]
[1761794660420,3.07589092,197.71,197.68,0.69]
[1761794661434,20.592,197.77,197.7,3.07589092]
[1761794661623,3.07589092,197.77,197.72,3.07589092]
[1761794661819,0.1,197.81,197.74,3.07589092]
[1761794662130,0.1,197.81,197.73,3.07589092]
[1761794662131,3.07589092,197.79,197.73,3.07589092]
[1761794662308,0.50586806,197.78,197.74,0.69]
[1761794662510,3.07589092,197.78,197.74,0.69]
[1761794662836,3.07589092,197.76,197.71,0.67]
[1761794663036,0.50586806,197.75,197.71,0.67]
[1761794663216,3.58175898,197.75,197.71,0.67]
[1761794663414,0.50586806,197.79,197.71,0.67]
[1761794663617,3.07589092,197.77,197.71,0.67]
[1761794663831,0.50586806,197.76,197.71,0.67]
[1761794664138,3.58175898,197.76,197.71,0.67]
[1761794664547,24.17375898,197.76,197.71,0.67]
[1761794665222,3.07589092,197.75,197.71,0.67]
[1761794665536,3.07589092,197.73,197.68,0.67]
[1761794665835,3.58175898,197.72,197.68,0.67]
[1761794666347,0.50586806,197.72,197.68,0.67]
[1761794667624,3.58175898,197.72,197.68,0.67]
[1761794667834,3.07589092,197.7,197.65,0.67]
[1761794668038,3.07589092,197.67,197.63,0.67]
[1761794668220,0.50586806,197.69,197.63,0.67]
[1761794668221,3.58175898,197.66,197.63,0.67]
[1761794668844,24.17375898,197.66,197.63,0.67]
[1761794669152,21.09786806,197.66,197.63,0.67]
[1761794669925,20.592,197.66,197.63,0.67]
[1761794671036,3.07589092,197.7,197.63,3.74589092]
[1761794671362,3.07589092,197.71,197.64,3.07589092]
[1761794671526,3.07589092,197.72,197.66,3.07589092]
[1761794671723,0.50586806,197.71,197.66,3.07589092]
[1761794671923,3.58175898,197.71,197.67,0.67]
[1761794675352,0.50586806,197.72,197.67,3.74589092]
[1761794675522,0.50586806,197.74,197.69,3.07589092]
[1761794675853,0.50586806,197.75,197.7,3.07589092]
[1761794676233,0.50586806,197.75,197.71,0.67]
[1761794679064,0.50586806,197.76,197.71,3.74589092]
[1761794679233,0.50586806,197.78,197.73,3.07589092]
[1761794679440,0.50586806,197.78,197.74,0.67]
[1761794679827,3.07589092,197.76,197.71,0.67]
[1761794680030,3.58175898,197.75,197.71,0.67]
[1761794680952,0.50586806,197.75,197.71,0.67]
[1761794681940,3.07589092,197.74,197.68,3.07589092]
[1761794682141,3.07589092,197.74,197.69,0.67]
[1761794682347,3.58175898,197.74,197.69,0.67]
[1761794683239,3.07589092,197.74,197.69,0.67]
[1761794683635,3.07589092,197.75,197.69,5.72833784]
[1761794683840,3.07589092,197.77,197.71,3.07589092]
[1761794684052,3.58175898,197.78,197.72,3.07589092]
[1761794684255,3.07589092,197.77,197.71,3.07589092]
[1761794684437,3.58175898,197.76,197.7,3.74589092]
[1761794684947,3.58175898,197.76,197.71,0.67]
[1761794685551,3.07589092,197.75,197.71,0.67]
[1761794687546,0.50586806,197.74,197.71,0.67]
[1761794688766,3.58175898,197.75,197.71,0.67]
[1761794689886,3.07589092,197.74,197.71,0.67]
[1761794691157,3.58175898,197.75,197.71,0.67]
[1761794692575,3.07589092,197.74,197.71,0.67]
[1761794692777,3.07589092,197.72,197.68,0.7]
[1761794693079,3.07589092,197.71,197.68,0.7]
[1761794695260,3.07589092,197.7,197.68,0.7]
[1761794695466,3.07589092,197.7,197.66,4.91597721]
[1761794695669,3.07589092,197.7,197.67,0.7]
[1761794697879,5.05693075,197.75,197.67,0.7]
[1761794697880,0.50586806,197.77,197.68,3.07589092]
[1761794698180,3.07589092,197.75,197.69,3.07589092]
[1761794698478,3.58175898,197.75,197.69,7.99186813]
[1761794698654,3.07589092,197.72,197.68,4.91597721]
[1761794698976,3.07589092,197.71,197.68,0.7]
[1761794699660,3.07589092,197.72,197.68,0.7]
[1761794700280,3.58175898,197.73,197.68,0.7]
[1761794700469,0.2,197.76,197.68,0.7]
[1761794700470,3.07589092,197.74,197.68,5.75865466]
[1761794700783,3.58175898,197.74,197.68,5.75865466]
[1761794700978,3.07589092,197.73,197.69,0.7]
[1761794701399,3.07589092,197.71,197.67,0.7]
[1761794702466,0.50586806,197.73,197.67,5.75892225]
[1761794702671,3.07589092,197.73,197.67,9.97489946]
[1761794702871,3.07589092,197.73,197.68,0.7]
[1761794703484,3.58175898,197.72,197.68,0.7]
[1761794704085,0.50586806,197.76,197.7,3.07589092]
[1761794704389,3.07589092,197.76,197.71,0.7]
[1761794704966,20.592,197.78,197.72,3.07589092]
[1761794704967,24.17375898,197.78,197.72,3.07589092]
[1761794705274,24.17375898,197.78,197.71,0.7]
[1761794705275,3.07589092,197.77,197.71,7.99186813]
[1761794705668,3.07589092,197.79,197.73,3.07589092]
[1761794705868,3.07589092,197.79,197.73,8.13324109]
[1761794706069,3.17589092,197.81,197.75,3.07589092]
[1761794706276,0.1,197.81,197.76,3.77589092]
[1761794706573,0.1,197.81,197.77,3.07589092]
[1761794706898,0.1,197.81,197.77,3.77589092]
[1761794707068,0.1,197.81,197.78,0.7]
[1761794707270,0.60586806,197.81,197.78,0.7]
[1761794707592,3.68175898,197.81,197.75,0.7]
[1761794707769,3.68175898,197.81,197.76,0.7]
[1761794708371,3.07589092,197.8,197.76,0.7]
[1761794708588,0.50586806,197.79,197.76,0.7]
[1761794709389,3.07589092,197.77,197.72,0.7]
[1761794709863,3.58175898,197.77,197.72,0.7]
[1761794710069,3.07589092,197.78,197.72,0.7]
[1761794710269,3.58175898,197.78,197.72,0.7]
[1761794710485,0.50586806,197.78,197.72,0.7]
[1761794710688,0.50586806,197.78,197.72,8.83343257]
[1761794710971,20.592,197.8,197.74,3.07589092]
[1761794711290,24.27375898,197.81,197.74,3.07589092]
[1761794711493,3.07589092,197.8,197.75,0.7]
[1761794711692,0.50586806,197.79,197.75,0.7]
[1761794711997,20.592,197.78,197.75,0.7]
[1761794712294,23.66789092,197.78,197.75,0.7]
[1761794712475,3.07589092,197.78,197.73,0.7]
[1761794712675,3.07589092,197.76,197.71,0.7]
[1761794713593,3.07589092,197.75,197.71,0.7]
[1761794714293,3.07589092,197.72,197.68,4.91597721]
[1761794714498,3.07589092,197.72,197.68,0.7]
[1761794715403,3.07589092,197.71,197.68,0.7]
[1761794715578,3.58175898,197.71,197.68,0.7]
[1761794716404,3.07589092,197.7,197.68,0.7]
[1761794716576,3.07589092,197.71,197.68,0.7]
[1761794716778,3.58175898,197.72,197.68,0.7]
[1761794717894,3.07589092,197.71,197.68,0.7]
[1761794718093,3.07589092,197.72,197.68,0.7]
[1761794718269,3.58175898,197.74,197.68,9.97462391]
[1761794718477,3.58175898,197.74,197.69,0.7]
[1761794719680,3.07589092,197.75,197.69,7.99186813]
[1761794719876,3.07589092,197.75,197.7,4.91597721]
[1761794720298,3.07589092,197.75,197.71,0.7]
[1761794720499,3.07589092,197.72,197.69,0.7]
[1761794721282,1.96869007,197.72,197.69,0.7]
[1761794723806,1.96869007,197.72,197.69,0.7]
[1761794725208,1.96869007,197.71,197.67,4.21597721]
[1761794725401,1.96869007,197.71,197.68,0.7]
[1761794725925,1.96869007,197.71,197.65,4.91597721]
[1761794725926,1.96869007,197.69,197.65,4.91597721]
[1761794726080,1.96869007,197.66,197.64,9.76366796]
[1761794726703,2.47455813,197.66,197.64,9.76366796]
[1761794727007,0.2,197.69,197.64,9.76366796]
[1761794727008,2.47455813,197.65,197.64,9.76366796]
[1761794727901,1.96869007,197.65,197.64,9.76366796]
[1761794728207,2.47455813,197.65,197.64,9.76366796]
[1761794729618,2.31085164,197.65,197.64,9.76366796]
[1761794729822,28.46816822,197.65,197.64,9.76366796]
[1761794730117,7.87616822,197.65,197.64,9.76366796]
[1761794731191,2.8167197,197.65,197.64,9.76366796]
[1761794731716,2.47455813,197.65,197.64,9.76366796]
[1761794732093,1.96869007,197.65,197.64,9.76366796]
[1761794732429,1.96869007,197.66,197.64,10.46366796]
[1761794732713,1.96869007,197.66,197.64,9.76366796]
[1761794732914,1.96869007,197.66,197.64,10.46366796]
[1761794733500,1.96869007,197.66,197.64,9.76366796]
[1761794733705,20.592,197.68,197.65,0.7]
[1761794733706,1.96869007,197.68,197.65,0.7]
[1761794735518,1.96869007,197.67,197.65,0.7]
[1761794738429,1.96869007,197.68,197.65,0.7]
[1761794738637,2.47455813,197.68,197.65,0.7]
[1761794739406,1.96869007,197.67,197.65,0.7]
[1761794740106,2.47455813,197.66,197.64,9.76366796]
[1761794740299,1.96869007,197.65,197.64,9.76366796]
[1761794741633,7.37030016,197.65,197.64,9.76366796]
[1761794742013,20.592,197.62,197.56,0.7]
[1761794742228,1.96869007,197.58,197.54,0.7]
[1761794742530,1.96869007,197.57,197.54,0.7]
[1761794743733,1.96869007,197.58,197.54,5.76219347]
[1761794743932,1.96869007,197.59,197.54,5.76219347]
[1761794744139,1.96869007,197.59,197.55,0.7]
[1761794744304,0.50586806,197.62,197.55,0.7]
[1761794744506,1.96869007,197.6,197.55,0.7]
[1761794744825,1.96869007,197.59,197.55,0.7]
[1761794745607,1.96869007,197.57,197.55,0.7]
[1761794746811,0.50586806,197.6,197.51,14.82615957]
[1761794746812,1.96869007,197.56,197.52,0.7]
[1761794747115,1.96869007,197.54,197.52,0.7]
[1761794747450,1.96869007,197.56,197.52,0.7]
[1761794747734,1.96869007,197.57,197.52,5.76273193]
[1761794748029,1.96869007,197.56,197.52,0.7]
[1761794748211,1.96869007,197.56,197.53,0.7]
[1761794749228,1.96869007,197.57,197.53,0.7]
[1761794750332,1.96869007,197.57,197.53,5.76250959]
[1761794750506,1.96869007,197.57,197.54,0.7]
[1761794753712,1.96869007,197.57,197.51,0.9]
[1761794753713,1.96869007,197.55,197.51,0.9]
[1761794754233,1.96869007,197.55,197.52,0.7]
[1761794755012,1.96869007,197.56,197.52,0.7]
[1761794756023,10.34,197.55,197.52,0.7]
[1761794758132,12.30869007,197.55,197.51,0.2]
[1761794758316,1.96869007,197.54,197.51,0.2]
[1761794758517,1.96869007,197.54,197.52,0.7]
[1761794759037,12.30869007,197.55,197.52,0.7]
[1761794761441,10.34,197.55,197.52,0.7]
[1761794761736,12.30869007,197.55,197.52,0.7]
[1761794762448,10.34,197.55,197.52,0.7]
[1761794762948,1.96869007,197.54,197.52,0.7]
[1761794763113,1.96869007,197.53,197.51,0.2]
[1761794763314,22.56069007,197.52,197.51,0.2]
[1761794763522,22.76069007,197.52,197.51,0.2]
[1761794764442,2.16869007,197.52,197.51,0.2]
[1761794764620,2.67455813,197.52,197.51,0.2]
[1761794766039,2.47455813,197.52,197.51,0.2]
[1761794766239,22.56069007,197.52,197.51,0.9]
[1761794766448,32.90069007,197.52,197.51,0.9]
[1761794766624,32.90069007,197.52,197.51,0.2]
[1761794768137,33.10069007,197.52,197.51,0.2]
[1761794770427,32.90069007,197.52,197.51,0.2]
[1761794772329,33.40655813,197.52,197.51,0.2]
[1761794773250,32.90069007,197.52,197.51,0.2]
[1761794773834,1.96869007,197.52,197.51,0.2]
[1761794774043,32.90069007,197.52,197.51,0.2]
[1761794775830,22.56069007,197.52,197.51,0.2]
[1761794776024,32.90069007,197.52,197.51,0.2]
[1761794776631,0.70586806,197.54,197.51,0.2]
[1761794776956,1.96869007,197.52,197.51,0.2]
[1761794777254,2.47455813,197.52,197.51,0.2]
[1761794782970,0.50586806,197.53,197.51,0.88]
[1761794783266,10.34,197.52,197.51,0.88]
[1761794783461,10.34,197.52,197.51,0.2]
[1761794784035,10.34,197.52,197.51,0.88]
[1761794787951,10.34,197.52,197.51,0.38]
[1761794788964,0.50586806,197.56,197.51,0.38]
[1761794789148,3.08113232,197.59,197.51,12.76449903]
[1761794789349,10.34,197.58,197.53,12.86996001]
[1761794789863,3.08113232,197.6,197.54,3.76113232]
[1761794790061,3.08113232,197.63,197.57,3.08113232]
[1761794790262,10.34,197.62,197.58,3.76113232]
[1761794790762,10.34,197.62,197.6,3.08113232]
[1761794791060,10.34,197.62,197.61,5.06047264]
[1761794791242,10.34,197.62,197.61,5.74047264]